bitfinex/quotes_ETHUSD_20240902
["timestamp","ask_amount","ask_price","bid_price","bid_amount"]
[1725245195151,5.04466,2445.4,2445.0,2.2649]
[1725245195827,2.04466,2445.4,2445.0,2.2649]
[1725245196438,5.04453,2445.6,2445.0,2.2649]
[1725245197078,3.0,2445.6,2445.0,2.2649]
[1725245197114,5.0444,2445.7,2445.0,2.49139]
[1725245197313,5.0444,2445.7,2445.1,2.39988667]
[1725245197523,5.0444,2445.7,2445.1,2.3181]
[1725245197725,5.0444,2445.7,2445.1,2.572559]
[1725245198751,5.0444,2445.7,2445.2,2.3181]
[1725245198936,5.0444,2445.7,2445.2,2.3998851]
[1725245199268,2.0444,2445.7,2445.2,2.3181]
[1725245199427,2.0444,2445.7,2445.2,2.39988208]
[1725245199620,3.0,2445.8,2445.3,2.3208]
[1725245199820,2.04426,2445.9,2445.3,2.3208]
[1725245200051,2.04438,2445.8,2445.3,2.3208]
[1725245200224,2.04448,2445.7,2445.3,2.3208]
[1725245200423,2.59756627,2445.7,2445.3,2.3208]
[1725245200661,2.04448,2445.7,2445.3,2.3208]
[1725245200961,3.0,2445.7,2445.4,0.08178364]
[1725245201125,3.0,2445.9,2445.5,2.3685]
[1725245201330,3.42873264,2446.0,2445.5,2.3685]
[1725245201555,3.0201739,2446.0,2445.5,2.3685]
[1725245201755,3.0,2445.9,2445.5,2.3685]
[1725245202642,2.04408,2446.1,2445.6,2.5531732]
[1725245203044,2.53033267,2446.3,2445.6,2.5531732]
[1725245203255,2.04399,2446.2,2445.6,2.5531732]
[1725245203634,2.04399,2446.2,2445.6,2.4714]
[1725245203875,5.04399,2446.2,2445.6,2.72671732]
[1725245204050,2.04399,2446.2,2445.6,2.72671732]
[1725245205315,5.04399,2446.2,2445.6,2.72671732]
[1725245205732,5.04399,2446.2,2445.7,2.55316856]
[1725245206134,5.04399,2446.2,2445.8,0.08176687]
[1725245206372,5.04399,2446.2,2445.7,2.75224859]
[1725245206373,2.04407,2446.1,2445.9,2.4714]
[1725245206673,2.04399,2446.2,2445.9,2.4714]
[1725245206979,3.0,2446.3,2446.1,2.4714]
[1725245207119,2.47227791,2446.6,2446.1,2.4714]
[1725245207964,2.04374,2446.5,2446.1,2.4714]
[1725245208227,2.04384,2446.4,2446.1,2.4714]
[1725245208462,5.63972106,2446.4,2446.1,2.4714]
[1725245208957,2.04397,2446.3,2446.1,2.4714]
[1725245209264,2.04398,2446.2,2446.1,2.4714]
[1725245209969,4.08796,2446.2,2446.1,2.4714]
[1725245210167,4.85634411,2446.2,2446.1,2.4714]
[1725245210474,4.85634411,2446.2,2445.6,2.3378]
[1725245210475,2.0443,2445.9,2445.6,2.3378]
[1725245210633,2.0444,2445.7,2445.6,2.3378]
[1725245210966,2.0443,2445.9,2445.6,2.3378]
[1725245211982,2.04432,2445.8,2445.6,2.3378]
[1725245212142,2.0444,2445.7,2445.6,2.3378]
[1725245213940,1.9884,2445.7,2445.6,2.3378]
[1725245216929,2.0444,2445.7,2445.6,2.3378]
[1725245220464,2.0442,2446.0,2445.6,2.57158]
[1725245220640,5.04414,2446.1,2445.6,2.57158]
[1725245220641,2.04432,2445.8,2445.6,2.57158]
[1725245220959,2.0444,2445.7,2445.6,2.3378]
[1725245228701,4.0888,2445.7,2445.6,2.3378]
[1725245228996,4.54631827,2445.7,2445.6,2.3378]
[1725245229166,4.0888,2445.7,2445.6,2.3378]
[1725245231617,2.04483,2445.2,2445.0,2.3553]
[1725245232352,2.0449,2445.1,2445.0,2.3553]
[1725245232960,2.04483,2445.2,2445.0,2.3553]
[1725245233708,2.0449,2445.1,2445.0,2.3553]
[1725245235506,4.0898,2445.1,2445.0,2.3553]
[1725245235704,2.04515,2444.8,2444.7,2.2781]
[1725245236903,2.0454,2444.5,2444.3,2.2781]
[1725245237202,2.0454,2444.5,2444.4,0.97081]
[1725245237409,2.0454,2444.5,2444.3,2.2781]
[1725245237575,2.04532,2444.6,2444.3,2.2781]
[1725245239004,4.09071,2444.6,2444.3,2.2781]
[1725245239225,2.04532,2444.6,2444.4,0.22781]
[1725245239595,2.0454,2444.5,2444.4,0.22781]
[1725245239998,2.04532,2444.6,2444.5,2.4938]
[1725245241139,5.045,2445.0,2444.5,2.4938]
[1725245241296,2.04485,2445.2,2444.7,2.4938]
[1725245241496,2.04499,2445.0,2444.7,2.4938]
[1725245242005,2.04485,2445.2,2444.7,2.4938]
[1725245242218,2.04491,2445.1,2444.9,2.4938]
[1725245242628,2.04485,2445.2,2444.9,2.4938]
[1725245243010,2.04491,2445.1,2444.9,2.4938]
[1725245243482,2.04485,2445.2,2444.9,2.74318]
[1725245243650,3.0,2445.4,2445.1,2.4938]
[1725245243929,2.04462,2445.5,2445.1,2.4938]
[1725245245401,2.04482,2445.2,2445.1,2.4938]
[1725245245886,2.04482,2445.2,2444.0,2.3182]
[1725245245887,2.04498,2445.0,2444.0,2.3182]
[1725245246093,2.04498,2445.0,2444.2,2.3182]
[1725245246094,2.0452,2444.8,2444.2,2.3182]
[1725245246738,2.04533,2444.6,2444.2,2.3182]
[1725245246899,2.04524,2444.7,2444.2,2.95857662]
[1725245247103,2.04549,2444.4,2444.2,2.95857662]
[1725245247320,2.04549,2444.4,2444.2,2.3182]
[1725245249546,3.0,2444.7,2444.2,2.3182]
[1725245249743,2.04525,2444.7,2444.1,2.3268]
[1725245249915,2.04525,2444.7,2444.1,2.89439592]
[1725245249916,2.0454,2444.6,2444.1,2.89439592]
[1725245250117,2.0454,2444.6,2444.1,2.3268]
[1725245250449,2.04559,2444.3,2444.1,2.3268]
[1725245252423,2.04565,2444.2,2444.1,2.3268]
[1725245252629,2.04581,2444.1,2443.8,2.2514]
[1725245254024,2.04565,2444.2,2443.8,2.2514]
[1725245256573,2.0458,2444.1,2443.8,2.2514]
[1725245256727,2.04591,2443.9,2443.8,2.2514]
[1725245257369,2.04583,2444.0,2443.8,2.2514]
[1725245259245,4.09182,2443.9,2443.8,2.2514]
[1725245259610,2.0461,2443.7,2443.5,2.377]
[1725245261965,2.04616,2443.6,2443.5,2.377]
[1725245262349,2.0461,2443.7,2443.5,2.377]
[1725245262937,2.04616,2443.6,2443.5,2.377]
[1725245267161,3.0,2443.8,2443.2,2.3337]
[1725245267162,2.04646,2443.3,2443.2,2.3337]
[1725245268289,4.09292,2443.3,2443.2,2.3337]
[1725245269998,2.04655,2443.2,2442.9,2.3639]
[1725245270209,2.04646,2443.3,2442.9,4.58029]
[1725245271295,2.0461,2443.7,2443.0,2.51206165]
[1725245271482,2.0461,2443.7,2442.9,4.26312]
[1725245271483,2.0461,2443.7,2443.2,2.4302]
[1725245271919,4.09191,2443.9,2443.2,2.4302]
[1725245272086,2.04593,2443.9,2443.2,2.4302]
[1725245272407,2.04593,2443.9,2443.4,2.4302]
[1725245272565,2.04604,2443.8,2443.4,2.4302]
[1725245272765,2.04607,2443.7,2443.4,2.4302]
[1725245273611,4.09223,2443.7,2443.4,2.4302]
[1725245273974,2.04593,2443.9,2443.4,2.79906278]
[1725245274173,2.04577,2444.1,2443.4,2.79906278]
[1725245274498,2.04577,2444.1,2443.6,2.2531]
[1725245274868,0.42884396,2444.2,2443.7,0.08183715]
[1725245275072,0.42884396,2444.2,2443.8,2.2531]
[1725245275073,2.47450396,2444.2,2443.8,2.2531]
[1725245276216,2.04582,2444.0,2443.8,2.2531]
[1725245277431,3.0,2444.1,2443.8,2.2531]
[1725245277616,2.47450396,2444.2,2443.8,2.2531]
[1725245277815,2.04566,2444.2,2443.8,2.47841]
[1725245281080,5.04557,2444.3,2443.8,2.47841]
[1725245281248,3.0,2444.3,2443.9,2.3407]
[1725245281551,5.04552,2444.4,2443.9,2.3407]
[1725245281736,2.04519,2444.8,2444.1,2.3407]
[1725245282048,2.04524,2444.7,2444.3,2.3407]
[1725245282541,2.04519,2444.8,2444.3,2.3407]
[1725245282845,4.09042,2444.8,2444.3,2.3407]
[1725245283151,3.0,2444.7,2444.3,2.3407]
[1725245283934,5.04524,2444.7,2444.3,2.3407]
[1725245284118,3.0,2444.7,2444.3,2.5829515]
[1725245284332,2.04519,2444.8,2444.3,2.5829515]
[1725245286166,2.04502,2445.0,2444.4,2.3469]
[1725245286274,2.04485,2445.2,2444.6,2.3469]
[1725245286476,2.04485,2445.2,2444.6,2.42870295]
[1725245286974,2.04491,2445.1,2444.6,2.3469]
[1725245287148,2.045,2445.0,2444.6,2.3469]
[1725245288018,2.045,2445.0,2444.6,2.42870467]
[1725245288220,2.045,2445.0,2444.8,2.3469]
[1725245289487,2.04471,2445.4,2444.8,2.3469]
[1725245289547,2.0445,2445.6,2445.0,2.3469]
[1725245289799,2.0445,2445.6,2445.2,2.3469]
[1725245290295,2.04435,2445.8,2445.2,2.3469]
[1725245290296,2.04445,2445.7,2445.2,2.3469]
[1725245290438,2.04445,2445.7,2445.2,2.605059]
[1725245291471,5.04445,2445.7,2445.2,2.605059]
[1725245292226,3.0,2445.7,2445.2,2.605059]
[1725245292426,2.04435,2445.8,2445.2,2.605059]
[1725245293333,2.04455,2445.6,2445.2,2.605059]
[1725245293531,2.04455,2445.6,2445.3,0.2839749]
[1725245294667,2.04465,2445.4,2445.2,2.3469]
[1725245296171,2.04452,2445.6,2445.2,2.3469]
[1725245297356,2.04465,2445.4,2445.2,2.3469]
[1725245297851,2.04473,2445.3,2445.2,2.3469]
[1725245298275,4.08946,2445.3,2445.2,2.3469]
[1725245299331,2.045,2445.0,2444.9,2.2605]
[1725245299532,2.0449,2445.1,2444.9,2.2605]
[1725245302161,2.04547,2444.5,2444.2,2.2635]
[1725245302375,2.04549,2444.4,2444.2,2.2635]
[1725245303537,2.04557,2444.3,2444.2,2.2635]
[1725245303776,2.04557,2444.3,2443.9,2.2751]
[1725245303777,2.04582,2444.0,2443.9,2.2751]
[1725245303974,2.04578,2444.1,2443.9,2.2751]
[1725245305820,2.04582,2444.0,2443.9,2.2751]
[1725245305965,2.04582,2444.0,2443.4,2.3153]
[1725245306169,7.03365918,2444.4,2443.4,2.3153]
[1725245306369,2.04624,2443.5,2443.4,2.3153]
[1725245307635,2.04649,2443.2,2443.1,2.4407]
[1725245308759,2.04641,2443.3,2442.9,2.4423]
[1725245308929,2.0466,2443.1,2442.9,2.4423]
[1725245309475,2.04641,2443.3,2442.9,2.4423]
[1725245309672,2.04651,2443.2,2442.9,2.68653]
[1725245309976,2.04651,2443.2,2442.9,2.4423]
[1725245310490,2.04644,2443.3,2442.9,2.4423]
[1725245311324,2.04654,2443.2,2442.9,2.4423]
[1725245311493,2.04644,2443.3,2442.9,2.4423]
[1725245311819,2.04644,2443.3,2442.9,2.68653]
[1725245313676,5.04627,2443.5,2442.9,2.68653]
[1725245314617,2.04634,2443.4,2442.9,2.68653]
[1725245314919,3.0,2443.5,2442.9,2.68653]
[1725245315081,2.04641,2443.3,2442.9,2.68653]
[1725245315715,5.04629,2443.5,2442.9,2.68653]
[1725245316406,3.0,2443.5,2443.1,2.353]
[1725245316603,2.04624,2443.6,2443.3,2.353]
[1725245316800,2.04624,2443.6,2443.3,2.59648522]
[1725245317119,2.04624,2443.6,2443.3,2.353]
[1725245317290,2.04624,2443.5,2443.3,2.353]
[1725245318417,2.04624,2443.6,2443.3,2.353]
[1725245318611,2.04626,2443.5,2443.3,2.353]
[1725245319938,2.04632,2443.4,2443.3,2.353]
[1725245321425,2.04602,2443.8,2443.3,2.596485]
[1725245321663,2.04608,2443.7,2443.4,2.3924]
[1725245322218,2.04608,2443.7,2443.5,0.2635885]
[1725245322865,2.04608,2443.7,2443.4,2.3924]
[1725245323070,4.09248,2443.5,2443.4,2.3924]
[1725245325444,2.04624,2443.5,2443.4,2.3924]
[1725245326226,2.04608,2443.7,2443.4,2.3924]
[1725245326427,4.09223,2443.7,2443.4,2.3924]
[1725245326826,2.04618,2443.6,2443.4,2.3924]
[1725245327028,2.04624,2443.5,2443.4,2.3924]
[1725245327664,4.09248,2443.5,2443.4,2.3924]
[1725245330026,2.04624,2443.5,2443.4,2.3924]
[1725245332149,2.04535967,2443.5,2443.4,2.3924]
[1725245335086,2.04608,2443.7,2443.4,2.3924]
[1725245335411,2.04617,2443.6,2443.4,2.3924]
[1725245336588,2.04617,2443.6,2443.4,2.63164]
[1725245336758,2.04617,2443.6,2443.4,2.3924]
[1725245337081,4.09248,2443.5,2443.4,2.3924]
[1725245337248,2.04647,2443.3,2443.0,2.4778]
[1725245337457,2.04649,2443.2,2443.0,4.79271592]
[1725245337665,2.04649,2443.2,2443.0,2.4778]
[1725245337881,2.04658,2443.1,2443.0,2.4778]
[1725245344085,4.09316,2443.1,2443.0,2.4778]
[1725245344281,2.04628,2443.5,2442.7,2.3745]
[1725245344282,2.04689,2442.8,2442.7,2.3745]
[1725245348965,2.13221174,2443.6,2442.7,2.61195]
[1725245349166,2.04647,2443.3,2442.9,2.3865]
[1725245349466,2.04647,2443.3,2442.9,2.65708121]
[1725245349976,5.04628,2443.5,2443.0,2.3865]
[1725245349977,2.04628,2443.5,2443.0,2.3865]
[1725245350175,2.04628,2443.5,2443.2,2.2528]
[1725245350504,2.04628,2443.5,2443.2,2.48626548]
[1725245350711,2.04612,2443.7,2443.2,2.48626548]
[1725245350878,2.04612,2443.7,2443.3,2.33465398]
[1725245351862,3.0,2443.8,2443.3,2.2528]
[1725245352093,3.0,2443.8,2443.5,2.2528]
[1725245352426,2.04599,2443.8,2443.5,2.2528]
[1725245352628,5.04599,2443.8,2443.5,2.2528]
[1725245352829,2.04599,2443.8,2443.5,2.2528]
[1725245353134,5.04599,2443.8,2443.5,2.2528]
[1725245353835,3.0,2443.8,2443.5,2.2528]
[1725245354026,2.13735902,2444.0,2443.5,2.47808]
[1725245354235,4.61180468,2444.3,2443.6,2.33463723]
[1725245354530,2.04584,2444.0,2443.6,2.500608]
[1725245354762,2.04597,2443.9,2443.6,2.2528]
[1725245354935,2.04584,2444.0,2443.6,2.2528]
[1725245355408,2.04567,2444.2,2443.6,2.2528]
[1725245355629,2.04567,2444.2,2443.7,2.580208]
[1725245355783,2.04574,2444.1,2443.7,2.3324]
[1725245355984,2.04567,2444.2,2443.7,2.3324]
[1725245356182,5.04567,2444.2,2443.7,2.792792]
[1725245356577,3.0,2444.1,2443.7,2.792792]
[1725245357079,2.04567,2444.2,2443.7,2.792792]
[1725245357537,3.0,2444.3,2443.7,2.792792]
[1725245357538,5.04558,2444.3,2443.7,2.792792]
[1725245357826,5.04558,2444.3,2443.8,2.7377792]
[1725245358444,2.04566,2444.2,2443.8,2.7377792]
[1725245358608,2.04566,2444.2,2443.8,2.4585]
[1725245363243,3.0,2444.3,2443.8,2.4585]
[1725245363551,2.04551,2444.4,2443.8,2.4585]
[1725245365953,2.04581,2444.1,2443.8,2.4585]
[1725245367658,2.04586,2444.0,2443.8,2.4585]
[1725245367862,2.04605,2443.8,2443.6,2.2601]
[1725245369367,2.04586,2444.0,2443.3,2.3387]
[1725245369368,2.04622,2443.6,2443.3,2.3387]
[1725245369659,2.0463,2443.5,2443.3,2.3387]
[1725245370058,2.250842,2443.6,2443.3,2.3387]
[1725245370059,2.04632,2443.4,2443.3,2.3387]
[1725245370367,2.04622,2443.6,2443.3,2.3387]
[1725245371163,2.04625,2443.5,2443.3,2.3387]
[1725245372019,2.04622,2443.6,2443.3,2.3387]
[1725245372560,2.04624,2443.5,2443.3,2.3387]
[1725245373216,2.04632,2443.4,2443.3,2.3387]
[1725245373534,2.04656,2443.2,2443.0,2.4996]
[1725245374219,2.04658,2443.1,2443.0,2.4996]
[1725245374620,2.04656,2443.2,2443.0,2.4996]
[1725245375978,2.04635,2443.4,2443.0,2.4996]
[1725245376169,2.04619,2443.6,2443.0,2.74956]
[1725245376170,5.04626,2443.5,2443.0,2.74956]
[1725245381718,3.0,2443.5,2443.0,2.4996]
[1725245381930,2.04658,2443.1,2443.0,2.4996]
[1725245382112,2.04674,2442.9,2442.8,2.4301]
[1725245382416,2.04698,2442.7,2442.3,2.4301]
[1725245382634,2.04698,2442.7,2442.3,4.65311]
[1725245382920,2.04698,2442.7,2442.3,2.4301]
[1725245383475,2.04709,2442.5,2442.3,2.4301]
[1725245384495,2.04698,2442.7,2442.3,2.4301]
[1725245384845,3.0,2442.8,2442.3,2.4301]
[1725245385002,2.04679,2442.9,2442.5,2.3196]
[1725245386879,4.09361,2442.9,2442.5,2.3196]
[1725245387009,3.0,2442.8,2442.5,2.3196]
[1725245387210,5.04683,2442.8,2442.5,2.3196]
[1725245387641,2.04691,2442.7,2442.5,2.3196]
[1725245390285,3.0,2442.8,2442.5,2.55156]
[1725245390458,2.04677,2442.9,2442.5,2.55156]
[1725245391417,2.04677,2442.9,2442.5,2.3196]
[1725245393024,2.04693,2442.7,2442.5,2.3196]
[1725245395378,0.6845,2443.2,2442.1,7.43]
[1725245395379,2.04678,2442.9,2442.2,2.2902]
[1725245395689,2.04725,2442.3,2442.2,2.2902]
[1725245398192,2.04741,2442.1,2442.0,2.3686]
[1725245402251,2.04733,2442.2,2442.0,2.3686]
[1725245403172,3.0,2442.3,2442.0,3.34846]
[1725245403371,3.0,2442.3,2442.1,2.4479]
[1725245403694,2.04703,2442.6,2442.1,2.4479]
[1725245404080,0.42908332,2442.8,2442.1,2.4479]
[1725245404270,2.04731,2442.3,2442.1,2.4479]
[1725245406058,2.04733,2442.2,2442.1,2.4479]
[1725245406962,4.09466,2442.2,2442.1,2.4479]
[1725245407285,5.04704,2442.6,2441.4,2.4068]
[1725245407286,2.04715,2442.5,2441.4,2.4068]
[1725245407452,2.620304,2442.5,2441.4,2.4068]
[1725245407653,3.0,2442.4,2441.4,2.4068]
[1725245409151,2.04765,2441.9,2441.4,2.4068]
[1725245409299,2.04765,2441.9,2441.4,3.93021292]
[1725245409470,2.04765,2441.9,2441.5,2.3587]
[1725245411560,2.04768,2441.8,2441.5,2.3587]
[1725245412156,2.04765,2441.9,2441.5,2.3587]
[1725245412360,2.04775,2441.7,2441.5,2.3587]
[1725245414275,2.04765,2441.9,2441.5,2.59457]
[1725245414514,5.04733,2442.2,2441.5,2.59457]
[1725245414833,3.0,2442.2,2441.6,2.3043]
[1725245415117,2.04729,2442.3,2441.6,2.3043]
[1725245415315,2.04729,2442.3,2441.7,2.38620096]
[1725245415971,4.09461,2442.3,2441.7,2.3043]
[1725245416174,3.0,2442.2,2441.7,2.3043]
[1725245416415,3.0,2442.2,2441.9,2.3043]
[1725245417391,5.04735,2442.2,2441.9,2.3043]
[1725245418683,3.0,2442.2,2441.9,2.3043]
[1725245418893,2.04729,2442.3,2441.9,2.3043]
[1725245423728,3.0,2442.4,2441.9,2.3043]
[1725245423729,5.04717,2442.4,2441.9,2.3043]
[1725245424030,3.0,2442.4,2441.9,2.53473]
[1725245424270,2.0471,2442.5,2441.9,2.53473]
[1725245424842,2.0475,2442.0,2441.9,2.3043]
[1725245425047,2.04765,2441.9,2441.6,2.3343]
[1725245425974,5.04765,2441.9,2441.6,2.3343]
[1725245427480,2.04775,2441.7,2441.6,2.3343]
[1725245427846,2.04775,2441.7,2441.4,2.267]
[1725245428091,2.04792,2441.5,2441.4,2.267]
[1725245430819,2.04785,2441.6,2441.4,2.267]
[1725245431886,2.757405,2441.6,2441.1,2.2728]
[1725245433008,2.04797,2441.5,2441.1,2.2728]
[1725245433885,2.048,2441.4,2441.1,2.2728]
[1725245435187,0.709555,2441.6,2440.8,2.2675]
[1725245435188,3.0,2441.5,2440.8,2.2675]
[1725245435459,2.04842,2440.9,2440.8,2.2675]
[1725245435729,3.0,2441.0,2440.8,2.2675]
[1725245435875,4.09666,2441.1,2440.8,2.2675]
[1725245436164,5.04835,2441.0,2440.8,2.2675]
[1725245437491,5.04835,2441.0,2440.5,2.3251]
[1725245437820,3.0,2441.0,2440.5,2.3251]
[1725245438024,2.04832,2441.1,2440.5,2.3251]
[1725245440431,2.04832,2441.1,2440.6,2.4043]
[1725245440808,3.0,2441.2,2440.7,2.3452]
[1725245441125,3.0,2441.4,2440.9,2.3452]
[1725245441481,2.47718756,2441.5,2440.9,2.3452]
[1725245441687,2.92968332,2441.5,2440.9,2.3452]
[1725245442031,3.0,2441.4,2440.9,2.3452]
[1725245442891,2.47718756,2441.5,2440.9,2.3452]
[1725245447505,2.04801,2441.4,2440.9,2.3452]
[1725245447702,5.04801,2441.4,2440.9,2.3452]
[1725245448189,2.04809,2441.3,2440.9,2.3452]
[1725245448393,5.04809,2441.3,2440.9,2.3452]
[1725245448590,2.04832,2441.1,2440.9,2.3452]
[1725245448808,4.09665,2441.1,2440.9,2.3452]
[1725245449343,2.04834,2441.0,2440.9,2.3452]
[1725245450331,2.04832,2441.1,2440.9,2.3452]
[1725245451613,3.0,2441.2,2440.9,2.3452]
[1725245451828,5.04811,2441.3,2440.9,3.32272]
[1725245452008,2.04811,2441.3,2440.9,3.32272]
[1725245452194,3.0,2441.2,2440.9,2.3452]
[1725245452388,2.04811,2441.3,2440.9,2.3452]
[1725245453286,4.09628,2441.3,2440.9,2.3452]
[1725245453630,5.04817,2441.2,2440.9,2.3452]
[1725245453814,3.0,2441.2,2440.9,2.3452]
[1725245453997,2.04811,2441.3,2440.9,2.3452]
[1725245456890,2.04827,2441.1,2440.9,2.3452]
[1725245457432,2.04834,2441.0,2440.9,2.3452]
[1725245457645,2.04859,2440.7,2440.6,2.3354]
[1725245458307,2.04874,2440.6,2440.1,2.3008]
[1725245458656,2.04859,2440.7,2440.2,2.3008]
[1725245460793,3.0,2440.9,2440.5,2.3538]
[1725245461027,2.47708922,2441.3,2440.7,4.40237]
[1725245461235,0.42895922,2441.3,2440.8,2.04849]
[1725245461399,2.04795,2441.5,2440.9,2.3538]
[1725245462140,5.04784,2441.6,2441.0,4.40212]
[1725245462305,5.84336118,2441.6,2441.1,2.3538]
[1725245462517,6.27396907,2441.6,2441.1,2.3538]
[1725245462709,2.04795,2441.5,2441.1,2.3538]
[1725245463599,2.04812,2441.3,2441.1,2.3538]
[1725245463910,2.252982,2441.2,2440.7,2.3892]
[1725245464111,3.0,2441.2,2440.7,2.3892]
[1725245464495,2.04812,2441.3,2440.7,2.3892]
[1725245465940,2.04812,2441.3,2440.8,2.3845]
[1725245466120,3.0,2441.4,2440.8,2.3845]
[1725245466322,5.04794,2441.5,2440.9,2.3845]
[1725245467138,5.04794,2441.5,2441.0,2.3092]
[1725245467349,3.0,2441.5,2441.0,2.3092]
[1725245467527,5.84338118,2441.6,2441.0,2.3092]
[1725245467730,2.04796,2441.5,2441.0,2.3092]
[1725245468253,5.04796,2441.5,2441.0,2.3092]
[1725245468306,2.04796,2441.5,2441.0,2.3092]
[1725245469937,3.43060789,2441.6,2441.1,2.3854]
[1725245470137,6.28202074,2441.6,2441.1,2.3854]
[1725245470640,4.23418074,2441.6,2441.1,2.3854]
[1725245470847,3.0,2441.6,2441.1,2.3854]
[1725245471542,0.4289839,2441.7,2441.3,2.3152]
[1725245471862,4.17578671,2442.1,2441.5,2.3152]
[1725245472205,6.6538846,2442.1,2441.5,2.3152]
[1725245472506,2.0475,2442.0,2441.5,2.3152]
[1725245472701,2.13214695,2442.0,2441.5,2.3152]
[1725245472902,2.04744,2442.1,2441.5,2.3152]
[1725245473206,4.17958695,2442.1,2441.5,2.3152]
[1725245473541,3.0,2442.0,2441.5,2.3152]
[1725245474301,5.04744,2442.1,2441.5,2.3152]
[1725245474545,5.71302112,2442.1,2441.5,2.3152]
[1725245475416,5.71302112,2442.1,2441.5,2.0479]
[1725245475648,2.13214695,2442.3,2441.6,2.3918]
[1725245475853,4.17931695,2442.4,2441.8,2.3918]
[1725245476020,5.78581928,2442.4,2441.8,2.3918]
[1725245476420,3.65367233,2442.4,2441.8,2.3918]
[1725245477205,3.0,2442.3,2441.8,2.3918]
[1725245477399,3.0,2442.3,2441.9,2.279]
[1725245477603,9.75609522,2442.5,2441.9,2.279]
[1725245477816,1.18879907,2442.4,2441.9,2.279]
[1725245478808,4.18879907,2442.4,2441.9,2.279]
[1725245479748,3.0,2442.4,2441.9,2.279]
[1725245479950,2.47609522,2442.5,2441.9,2.279]
[1725245480862,0.42896522,2442.5,2441.9,2.279]
[1725245481028,2.56250336,2442.4,2441.9,2.279]
[1725245481419,2.0475,2442.0,2441.9,2.279]
[1725245481482,5.456996,2442.0,2441.9,2.279]
[1725245482273,3.409496,2442.0,2441.1,2.4994]
[1725245482479,2.04812,2441.3,2441.1,2.4994]
[1725245484550,3.0,2441.4,2441.1,2.4994]
[1725245484751,2.04794,2441.5,2441.1,2.4994]
[1725245485077,2.048,2441.4,2441.1,2.4994]
[1725245485373,5.048,2441.4,2441.1,2.4994]
[1725245486564,3.0,2441.4,2441.1,2.74934]
[1725245486764,2.04777,2441.7,2441.1,2.74934]
[1725245486942,3.0,2441.8,2441.3,2.3226]
[1725245487144,2.0476,2441.9,2441.3,2.79286055]
[1725245488590,4.09526,2441.9,2441.3,2.79286055]
[1725245488743,5.04767,2441.8,2441.3,2.79286055]
[1725245489087,3.0,2441.7,2441.3,2.79286055]
[1725245489491,5.04767,2441.8,2441.3,2.79286055]
[1725245491853,2.04776,2441.7,2441.3,2.3226]
[1725245497099,4.09558,2441.7,2441.3,2.3226]
[1725245497261,3.0,2441.6,2441.3,2.3226]
[1725245497468,2.04776,2441.7,2441.3,2.3226]
[1725245499608,5.04758,2441.9,2441.3,2.3226]
[1725245499907,3.0,2441.9,2441.4,2.59106]
[1725245500058,3.42899065,2442.0,2441.4,2.3588]
[1725245500265,2.47654065,2442.0,2441.5,2.2905]
[1725245500463,5.47654065,2442.0,2441.5,2.2905]
[1725245500786,2.04758,2441.9,2441.5,2.2905]
[1725245501003,5.04758,2441.9,2441.5,2.2905]
[1725245501364,2.04758,2441.9,2441.5,2.2905]
[1725245502405,3.42899065,2442.0,2441.5,2.724356]
[1725245502577,3.0,2441.9,2441.5,2.2905]
[1725245502909,3.0,2442.1,2441.6,2.2779]
[1725245503110,3.0,2442.2,2441.6,2.2779]
[1725245503462,2.04739,2442.2,2441.7,2.2779]
[1725245503694,5.04739,2442.2,2441.7,2.2779]
[1725245505272,6.01249893,2442.2,2441.7,2.2779]
[1725245505891,2.04743,2442.1,2441.7,2.2779]
[1725245506098,2.47812789,2442.0,2441.7,2.2779]
[1725245506411,2.04766,2441.8,2441.7,2.2779]
[1725245508374,2.04766,2441.9,2441.7,2.2779]
[1725245512827,3.0,2442.0,2441.7,2.2779]
[1725245512982,5.04745,2442.1,2441.7,2.2779]
[1725245513181,6.06613863,2442.1,2441.7,2.2779]
[1725245513792,5.04745,2442.1,2441.7,2.2779]
[1725245514299,2.04745,2442.1,2441.7,2.2779]
[1725245518697,3.0,2442.2,2441.7,2.2779]
[1725245518897,5.04734,2442.2,2441.7,2.2779]
[1725245519102,3.0,2442.2,2441.7,2.2779]
[1725245520102,5.04728,2442.3,2441.7,2.2779]
[1725245521787,3.0,2442.3,2441.8,2.4963]
[1725245522200,3.42902204,2442.4,2441.8,2.4963]
[1725245522416,3.42902204,2442.4,2441.9,2.4963]
[1725245522611,3.0,2442.3,2441.9,2.4963]
[1725245522770,0.42902204,2442.4,2442.0,2.4963]
[1725245522974,2.04694,2442.7,2442.1,2.4963]
[1725245522975,4.17448212,2442.7,2442.1,2.4963]
[1725245523215,2.12754212,2442.8,2442.3,2.4963]
[1725245523454,2.04676,2442.9,2442.3,2.4963]
[1725245526519,2.04684,2442.8,2442.3,2.4963]
[1725245526724,5.04684,2442.8,2442.3,2.4963]
[1725245529709,2.04693,2442.7,2442.3,2.4963]
[1725245529962,5.04693,2442.7,2442.3,2.4963]
[1725245530335,2.04693,2442.7,2442.3,2.4963]
[1725245532230,2.04693,2442.7,2442.4,2.57635581]
[1725245532428,2.04693,2442.7,2442.4,2.2731]
[1725245535516,2.04699,2442.6,2442.4,2.2731]
[1725245535734,3.0,2442.8,2442.4,2.2731]
[1725245535735,4.09416,2442.5,2442.4,2.2731]